lending/lending_fUSD_20240509
["ID","MTS","AMOUNT","RATE_DAILY","PERIOD"]
[326722442,1715284247244,-1058.44,0.00041095,30]
[326722443,1715284247254,-641.90762808,0.00041095,30]
[326722444,1715284247263,-1839.1,0.00041095,30]
[326722445,1715284247273,-500.0,0.00041095,30]
[326722446,1715284247282,-500.0,0.00041095,30]
[326722447,1715284247291,-500.0,0.00041095,30]
[326722448,1715284247300,-1338.17,0.00041095,30]
[326722449,1715284247310,-500.0,0.00041095,30]
[326722450,1715284247320,-500.0,0.00041095,30]
[326722451,1715284247329,-500.0,0.00041095,30]
[326722452,1715284247338,-500.0,0.00041095,30]
[326722453,1715284247348,-500.0,0.00041095,30]
[326722454,1715284247357,-500.0,0.00041095,30]
[326722455,1715284247368,-885.42,0.00041095,30]
[326722456,1715284247378,-500.0,0.00041095,30]
[326722457,1715284247387,-1637.95,0.00041095,30]
[326722458,1715284247396,-508.55904315,0.00041095,30]
[326722459,1715284247406,-500.0,0.00041095,30]
[326722460,1715284247416,-500.0,0.00041095,30]
[326722461,1715284247425,-500.0,0.00041095,30]
[326722462,1715284247435,-500.0,0.00041095,30]
[326722463,1715284247444,-500.0,0.00041095,30]
[326722464,1715284247454,-500.0,0.00041095,30]
[326722465,1715284247463,-500.0,0.00041095,30]
[326722466,1715284247474,-500.0,0.00041095,30]
[326722467,1715284247483,-1613.42,0.00041095,30]
[326722468,1715284247492,-3415.12,0.00041095,30]
[326722469,1715284247502,-500.0,0.00041095,30]
[326722470,1715284247512,-509.44376058,0.00041095,30]
[326722471,1715284247521,-1630.14,0.00041095,30]
[326722472,1715284247531,-506.46378973,0.00041095,30]
[326722473,1715284247540,-549.36,0.00041095,30]
[326722474,1715284247549,-500.0,0.00041095,30]
[326722475,1715284247559,-566.98,0.00041095,30]
[326722476,1715284247568,-500.0,0.00041095,30]
[326722477,1715284247578,-500.0,0.00041095,30]
[326722478,1715284247587,-1472.57,0.00041095,30]
[326722479,1715284247597,-500.0,0.00041095,30]
[326722480,1715284247608,-500.0,0.00041095,30]
[326722481,1715284247619,-500.0,0.00041095,30]
[326722482,1715284247629,-412.6245085,0.00041095,30]
[326722483,1715284247638,-500.0,0.00041095,30]
[326722484,1715284247649,-500.0,0.00041095,30]
[326722485,1715284247660,-719.12,0.00041095,30]
[326722486,1715284247671,-500.0,0.00041095,30]
[326722487,1715284247681,-500.0,0.00041095,30]
[326722488,1715284247874,-1338.55,0.00041095,30]
[326722489,1715284247884,-2379.3,0.00041095,90]
[326722490,1715284247893,-500.0,0.00041095,30]
[326722491,1715284247902,-500.0,0.00041095,30]
[326722492,1715284247912,-500.0,0.00041095,30]
[326722493,1715284247922,-500.0,0.00041095,30]
[326722494,1715284247932,-500.0,0.00041095,30]
[326722495,1715284247940,-500.0,0.00041095,30]
[326722496,1715284247949,-500.0,0.00041095,30]
[326722497,1715284247959,-1016.5,0.00041095,30]
[326722498,1715284247969,-500.0,0.00041095,30]
[326722499,1715284247979,-508.59012447,0.00041095,30]
[326722500,1715284247988,-500.0,0.00041095,30]
[326722501,1715284248002,-500.0,0.00041095,30]
[326722502,1715284248012,-500.0,0.00041095,30]
[326722503,1715284248021,-1979.98,0.00041095,30]
[326722504,1715284248030,-500.0,0.00041095,30]
[326722505,1715284248039,-500.0,0.00041095,30]
[326722506,1715284248048,-745.75,0.00041095,30]
[326722507,1715284248057,-500.0,0.00041095,30]
[326722508,1715284248066,-178.31764675,0.00041095,30]
[326722509,1715284248075,-500.0,0.00041095,30]
[326722510,1715284248085,-500.0,0.00041095,30]
[326722511,1715284248094,-500.0,0.00041095,30]
[326722512,1715284248103,-526.45,0.00041095,30]
[326722513,1715284248113,-500.0,0.00041095,30]
[326722514,1715284248121,-882.56,0.00041095,30]
[326722515,1715284248130,-500.0,0.00041095,30]
[326722516,1715284248139,-500.0,0.00041095,30]
[326722517,1715284248148,-500.0,0.00041095,30]
[326722518,1715284248157,-199.4235839,0.00041095,30]
[326722519,1715284248166,-1256.94,0.00041095,30]
[326722520,1715284248175,-1000.0,0.00041095,30]
[326722521,1715284248185,-500.0,0.00041095,30]
[326722522,1715284248194,-500.0,0.00041095,30]
[326722523,1715284248203,-500.0,0.00041095,30]
[326722524,1715284248212,-751.0,0.00041095,30]
[326722525,1715284248221,-500.0,0.00041095,30]
[326722526,1715284248230,-500.0,0.00041095,30]
[326722527,1715284248239,-500.0,0.00041095,30]
[326722528,1715284248248,-500.0,0.00041095,30]
[326722529,1715284248257,-500.0,0.00041095,30]
[326722530,1715284248266,-500.0,0.00041095,30]
[326722531,1715284248275,-1209.71,0.00041095,30]
[326722532,1715284248284,-500.0,0.00041095,30]
[326722533,1715284248293,-696.11,0.00041095,30]
[326722534,1715284248303,-500.0,0.00041095,30]
[326722535,1715284248312,-500.0,0.00041095,30]
[326722536,1715284248321,-500.0,0.00041095,30]
[326722537,1715284248330,-500.0,0.00041095,30]
[326722538,1715284248338,-1233.7,0.00041095,30]
[326722539,1715284248348,-500.0,0.00041095,30]
[326722540,1715284248357,-500.0,0.00041095,30]
[326722541,1715284248367,-500.0,0.00041095,30]
[326722542,1715284248377,-1243.61,0.00041095,30]
[326722543,1715284248386,-1195.95,0.00041095,30]
[326722544,1715284248395,-500.0,0.00041095,30]
[326722545,1715284248404,-500.0,0.00041095,30]
[326722546,1715284248414,-195.97308577,0.00041095,30]
[326722547,1715284248423,-500.0,0.00041095,30]
[326722548,1715284248432,-500.0,0.00041095,30]
[326722549,1715284248442,-500.0,0.00041095,30]
[326722550,1715284248451,-566.25,0.00041095,30]
[326722551,1715284248460,-500.0,0.00041095,30]
[326722552,1715284248469,-1169.68,0.00041095,30]
[326722553,1715284248478,-1260.04,0.00041095,30]
[326722554,1715284248487,-500.0,0.00041095,30]
[326722555,1715284248497,-500.0,0.00041095,30]
[326722556,1715284248506,-541.04,0.00041095,30]
[326722557,1715284248516,-500.0,0.00041095,30]
[326722558,1715284248525,-934.31,0.00041095,30]
[326722559,1715284248534,-500.0,0.00041095,30]
[326722560,1715284248543,-500.99684232,0.00041095,30]
[326722561,1715284248552,-2321.84,0.00041095,30]
[326722562,1715284248561,-1256.03,0.00041095,30]
[326722563,1715284248570,-1200.0,0.00041095,2]
[326722564,1715284248579,-164.74245248,0.00041095,30]
[326722565,1715284248589,-546.87,0.00041095,30]
[326722566,1715284248598,-500.0,0.00041095,30]
[326722567,1715284248607,-500.0,0.00041095,30]
[326722568,1715284248617,-500.0,0.00041095,30]
[326722569,1715284248626,-500.0,0.00041095,30]
[326722570,1715284248635,-500.0,0.00041095,30]
[326722571,1715284248644,-500.0,0.00041095,30]
[326722572,1715284248653,-500.0,0.00041095,30]
[326722573,1715284248662,-500.0,0.00041095,30]
[326722574,1715284248672,-1577.72,0.00041095,30]
[326722575,1715284248680,-1229.48,0.00041095,30]
[326722576,1715284248690,-500.0,0.00041095,30]
[326722577,1715284248699,-505.93,0.00041095,30]
[326722578,1715284248708,-659.81,0.00041095,30]
[326722579,1715284248718,-499.79557476,0.00041095,30]
[326722580,1715284248727,-500.0,0.00041095,30]
[326722581,1715284248736,-500.0,0.00041095,30]
[326722582,1715284248745,-932.92,0.00041095,30]
[326722583,1715284248754,-671.85,0.00041095,30]
[326722584,1715284248764,-500.0,0.00041095,30]
[326722585,1715284248773,-500.0,0.00041095,30]
[326722586,1715284248782,-1454.91,0.00041095,30]
[326722587,1715284248791,-719.25,0.00041095,30]
[326722588,1715284248801,-500.0,0.00041095,30]
[326722589,1715284248810,-500.0,0.00041095,30]
[326722590,1715284248819,-709.98,0.00041095,30]
[326722591,1715284248830,-500.0,0.00041095,30]
[326722592,1715284248840,-500.0,0.00041095,30]
[326722593,1715284248850,-1513.86,0.00041095,30]
[326722594,1715284248859,-500.0,0.00041095,30]
[326722595,1715284248870,-500.0,0.00041095,30]
[326722596,1715284248880,-769.91,0.00041095,30]
[326722597,1715284248889,-1334.08,0.00041095,30]
[326722598,1715284248898,-500.0,0.00041095,30]
[326722599,1715284248913,-500.0,0.00041095,30]
[326722600,1715284248923,-539.90440732,0.00041095,30]
[326722601,1715284248932,-550.67,0.00041095,30]
[326722602,1715284248942,-500.0,0.00041095,30]
[326722603,1715284248954,-505.23,0.00041095,30]
[326722604,1715284248963,-500.0,0.00041095,30]
[326722605,1715284248972,-597.49,0.00041095,30]
[326722606,1715284248981,-500.0,0.00041095,30]
[326722607,1715284248993,-434.93935768,0.00041095,30]
[326722608,1715284249004,-611.43,0.00041095,30]
[326722609,1715284249014,-500.0,0.00041095,30]
[326722610,1715284249023,-532.24,0.00041095,30]
[326722611,1715284249032,-500.0,0.00041095,30]
[326722612,1715284249042,-500.0,0.00041095,30]
[326722613,1715284249051,-546.09449176,0.00041095,30]
[326722614,1715284249060,-500.0,0.00041095,30]
[326722615,1715284249070,-823.13,0.00041095,30]
[326722616,1715284249079,-500.0,0.00041095,30]
[326722617,1715284249089,-1187.53,0.00041095,30]
[326722618,1715284249098,-1247.18,0.00041095,30]
[326722619,1715284249107,-500.0,0.00041095,30]
[326722620,1715284249118,-500.0,0.00041095,30]
[326722621,1715284249127,-508.84,0.00041095,30]
[326722622,1715284249136,-500.0,0.00041095,30]
[326722623,1715284249145,-1415.93,0.00041095,30]
[326722624,1715284249154,-500.0,0.00041095,30]
[326722625,1715284249164,-500.0,0.00041095,30]
[326722626,1715284249173,-500.0,0.00041095,30]
[326722627,1715284249183,-500.0,0.00041095,30]
[326722628,1715284249192,-1153.63,0.00041095,30]
[326722629,1715284249202,-500.0,0.00041095,30]
[326722630,1715284249211,-500.0,0.00041095,30]
[326722631,1715284249220,-500.0,0.00041095,30]
[326722632,1715284249229,-500.0,0.00041095,30]
[326722633,1715284249239,-865.47,0.00041095,30]
[326722634,1715284249248,-500.0,0.00041095,30]
[326722635,1715284249257,-500.0,0.00041095,30]
[326722636,1715284249266,-658.52,0.00041095,30]
[326722637,1715284249275,-500.0,0.00041095,30]
[326722638,1715284249284,-500.0,0.00041095,30]
[326722639,1715284249294,-500.0,0.00041095,30]
[326722640,1715284249303,-676.54,0.00041095,30]
[326722641,1715284249313,-500.0,0.00041095,30]
[326722642,1715284249322,-1052.23,0.00041095,30]
[326722643,1715284249332,-500.0,0.00041095,30]
[326722644,1715284249341,-500.0,0.00041095,30]
[326722645,1715284249351,-500.0,0.00041095,30]
[326722646,1715284249360,-500.0,0.00041095,7]
[326722647,1715284249372,-794.94,0.00041095,30]
[326722648,1715284249381,-500.0,0.00041095,30]
[326722649,1715284249390,-769.57,0.00041095,30]
[326722650,1715284249399,-914.58,0.00041095,30]
[326722651,1715284249408,-500.0,0.00041095,30]
[326722652,1715284249417,-2665.68,0.00041095,30]
[326722653,1715284249427,-500.0,0.00041095,30]
[326722654,1715284249437,-1985.26,0.00041095,30]
[326722655,1715284249446,-500.0,0.00041095,30]
[326722656,1715284249455,-500.0,0.00041095,30]
[326722657,1715284249464,-500.0,0.00041095,30]
[326722658,1715284249474,-500.0,0.00041095,30]
[326722659,1715284249483,-500.0,0.00041095,30]
[326722660,1715284249491,-500.0,0.00041095,30]
[326722661,1715284249500,-647.0,0.00041095,30]
[326722662,1715284249509,-563.36,0.00041095,30]
[326722663,1715284249519,-1914.93,0.00041095,30]
[326722664,1715284249528,-500.0,0.00041095,30]
[326722665,1715284249537,-500.0,0.00041095,30]
[326722666,1715284249546,-500.0,0.00041095,30]
[326722667,1715284249555,-500.0,0.00041095,30]
[326722668,1715284249564,-500.0,0.00041095,30]
[326722669,1715284249573,-650.07,0.00041095,30]
[326722670,1715284249582,-500.0,0.00041095,30]
[326722671,1715284249592,-500.0,0.00041095,30]
[326722672,1715284249601,-566.11,0.00041095,30]
[326722673,1715284249611,-500.0,0.00041095,30]
[326722674,1715284249622,-575.54,0.00041095,30]
[326722675,1715284249631,-500.0,0.00041095,30]
[326722676,1715284249640,-1454.4,0.00041095,30]
[326722677,1715284249649,-500.0,0.00041095,30]
[326722678,1715284249659,-941.24,0.00041095,30]
[326722679,1715284249668,-500.0,0.00041095,30]
[326722680,1715284249677,-997.23,0.00041095,30]
[326722681,1715284249687,-500.0,0.00041095,30]
[326722682,1715284249697,-500.0,0.00041095,30]
[326722683,1715284249706,-500.0,0.00041095,30]
[326722684,1715284249715,-559.98,0.00041095,30]
[326722685,1715284249725,-500.0,0.00041095,30]
[326722686,1715284249735,-500.0,0.00041095,30]
[326722687,1715284249744,-500.0,0.00041095,30]
[326722688,1715284249753,-500.0,0.00041095,30]
[326722689,1715284249763,-500.0,0.00041095,30]
[326722690,1715284249772,-500.0,0.00041095,30]
[326722691,1715284249781,-500.0,0.00041095,30]
[326722692,1715284249791,-500.0,0.00041095,30]
[326722693,1715284249800,-500.0,0.00041095,30]
[326722694,1715284249810,-500.0,0.00041095,30]
[326722695,1715284249819,-1037.79,0.00041095,30]
[326722696,1715284249829,-675.75,0.00041095,30]
[326722697,1715284249838,-500.0,0.00041095,30]
[326722698,1715284249848,-500.0,0.00041095,30]
[326722699,1715284249857,-2147.11,0.00041095,30]
[326722700,1715284249867,-734.18,0.00041095,30]
[326722701,1715284249877,-500.0,0.00041095,30]
[326722702,1715284249886,-500.0,0.00041095,30]
[326722703,1715284249896,-1545.81,0.00041095,30]
[326722704,1715284249906,-2955.61,0.00041095,30]
[326722705,1715284249915,-500.0,0.00041095,30]
[326722706,1715284249929,-500.0,0.00041095,30]
[326722707,1715284249938,-500.0,0.00041095,30]
[326722708,1715284249947,-500.0,0.00041095,30]
[326722709,1715284249957,-500.0,0.00041095,30]
[326722710,1715284249966,-500.0,0.00041095,30]
[326722711,1715284249975,-500.0,0.00041095,30]
[326722712,1715284249984,-576.72,0.00041095,30]
[326722713,1715284249994,-500.0,0.00041095,30]
[326722714,1715284250006,-500.0,0.00041095,30]
[326722715,1715284250016,-500.0,0.00041095,30]
[326722716,1715284250026,-1058.7,0.00041095,30]
[326722717,1715284250035,-534.31702145,0.00041095,30]
[326722718,1715284250044,-500.0,0.00041095,30]
[326722719,1715284250054,-500.0,0.00041095,30]
[326722720,1715284250208,-500.0,0.00041095,30]
[326722721,1715284250218,-175.18361913,0.00041095,30]
[326722722,1715284250227,-500.0,0.00041095,30]
[326722723,1715284250236,-627.57,0.00041095,30]
[326722724,1715284250246,-500.0,0.00041095,30]
[326722725,1715284250255,-500.0,0.00041095,30]
[326722726,1715284250264,-500.0,0.00041095,30]
[326722727,1715284250274,-863.0,0.00041095,30]
[326722728,1715284250283,-500.0,0.00041095,30]
[326722729,1715284250292,-500.0,0.00041095,30]
[326722730,1715284250301,-500.0,0.00041095,30]
[326722731,1715284250310,-500.0,0.00041095,30]
[326722732,1715284250319,-613.01645185,0.00041095,30]
[326722733,1715284250328,-500.0,0.00041095,30]
[326722734,1715284250338,-500.0,0.00041095,30]
[326722735,1715284250348,-500.0,0.00041095,30]
[326722736,1715284250357,-580.11,0.00041095,30]
[326722737,1715284250366,-500.0,0.00041095,30]
[326722738,1715284250375,-500.0,0.00041095,30]
[326722739,1715284250384,-500.0,0.00041095,30]
[326722740,1715284250394,-500.0,0.00041095,30]
[326722741,1715284250403,-500.0,0.00041095,30]
[326722742,1715284250412,-506.44330945,0.00041095,30]
[326722743,1715284250421,-500.0,0.00041095,30]
[326722744,1715284250430,-1111.38,0.00041095,30]
[326722745,1715284250439,-500.0,0.00041095,30]
[326722746,1715284250449,-500.0,0.00041095,30]
[326722747,1715284250458,-694.46,0.00041095,30]
[326722748,1715284250467,-2000.0,0.00041095,120]
[326722749,1715284250476,-500.0,0.00041095,30]
[326722750,1715284250486,-500.0,0.00041095,30]
[326722751,1715284250495,-3862.76,0.00041095,30]
[326722752,1715284250504,-500.0,0.00041095,30]
[326722753,1715284250513,-649.01,0.00041095,30]
[326722754,1715284250522,-500.0,0.00041095,30]
[326722755,1715284250531,-561.13,0.00041095,30]
[326722756,1715284250540,-500.0,0.00041095,30]
[326722757,1715284250549,-737.9,0.00041095,30]
[326722758,1715284250559,-500.0,0.00041095,30]
[326722759,1715284250568,-500.0,0.00041095,30]
[326722760,1715284250577,-500.0,0.00041095,30]
[326722761,1715284250586,-500.0,0.00041095,30]
[326722762,1715284250596,-500.0,0.00041095,30]
[326722763,1715284250605,-1342.43,0.00041095,30]
[326722764,1715284250615,-2004.21,0.00041095,30]
[326722765,1715284250628,-505.2088867,0.00041095,30]
[326722766,1715284250650,-500.0,0.00041095,30]
[326722767,1715284250673,-500.0,0.00041095,30]
[326722768,1715284250696,-500.0,0.00041095,30]
[326722769,1715284250717,-500.0,0.00041095,30]
[326722770,1715284250739,-500.0,0.00041095,30]
[326722771,1715284250759,-573.88208147,0.00041095,30]
[326722772,1715284250781,-500.0,0.00041095,30]
[326722773,1715284250804,-500.0,0.00041095,30]
[326722774,1715284250815,-544.4,0.00041095,30]
[326722775,1715284250824,-500.0,0.00041095,30]
[326722776,1715284250834,-500.0,0.00041095,30]
[326722777,1715284250843,-500.0,0.00041095,30]
[326722778,1715284250852,-500.0,0.00041095,30]
[326722779,1715284250863,-500.0,0.00041095,30]
[326722780,1715284250874,-807.63,0.00041095,30]
[326722781,1715284250883,-2184.2,0.00041095,30]
[326722782,1715284250893,-500.0,0.00041095,30]
[326722783,1715284250902,-500.0,0.00041095,30]
[326722784,1715284250917,-500.0,0.00041095,30]
[326722785,1715284250927,-500.0,0.00041095,30]
[326722786,1715284250936,-510.54812696,0.00041095,30]
[326722787,1715284250946,-500.0,0.00041095,30]
[326722788,1715284250957,-1120.97,0.00041095,30]
[326722789,1715284250967,-3004.04,0.00041095,30]
[326722790,1715284250976,-500.0,0.00041095,30]
[326722791,1715284250985,-716.86,0.00041095,30]
[326722792,1715284250996,-500.0,0.00041095,30]
[326722793,1715284251007,-500.0,0.00041095,30]
[326722794,1715284251017,-500.0,0.00041095,30]
[326722795,1715284251026,-784.22,0.00041095,30]
[326722796,1715284251036,-899.54,0.00041095,30]
[326722797,1715284251045,-606.77,0.00041095,30]
[326722798,1715284251054,-500.0,0.00041095,30]
[326722799,1715284251063,-500.0,0.00041095,30]
[326722800,1715284251072,-500.0,0.00041095,30]
[326722801,1715284251082,-523.82,0.00041095,30]
[326722802,1715284251091,-500.0,0.00041095,30]
[326722803,1715284251101,-500.0,0.00041095,30]
[326722804,1715284251111,-1016.31,0.00041095,30]
[326722805,1715284251122,-346.58625206,0.00041095,60]
[326722806,1715284251131,-500.0,0.00041095,30]
[326722807,1715284251147,-500.0,0.00041095,30]
[326722808,1715284251156,-1333.36,0.00041095,30]
[326722809,1715284251166,-9548.06,0.00041095,30]
[326722810,1715284251175,-500.0,0.00041095,30]
[326722811,1715284251184,-500.0,0.00041095,30]
[326722812,1715284251193,-512.30290258,0.00041095,30]
[326722813,1715284251202,-500.0,0.00041095,30]
[326722814,1715284251211,-500.0,0.00041095,30]
[326722815,1715284251222,-500.0,0.00041095,30]
[326722816,1715284251233,-500.0,0.00041095,30]
[326722817,1715284251242,-500.0,0.00041095,30]
[326722818,1715284251251,-551.14410088,0.00041095,30]
[326722819,1715284251260,-500.0,0.00041095,30]
[326722820,1715284251269,-500.0,0.00041095,30]
[326722821,1715284251279,-500.0,0.00041095,30]
[326722822,1715284251290,-500.0,0.00041095,30]
[326722823,1715284251300,-500.0,0.00041095,30]
[326722824,1715284251310,-500.0,0.00041095,30]
[326722825,1715284251319,-500.0,0.00041095,30]
[326722826,1715284251328,-500.0,0.00041095,30]
[326722827,1715284251337,-1603.48,0.00041095,30]
[326722828,1715284251348,-500.0,0.00041095,30]
[326722829,1715284251366,-500.0,0.00041095,30]
[326722830,1715284251387,-500.0,0.00041095,30]
[326722831,1715284251405,-923.28,0.00041095,30]
[326722832,1715284251424,-500.0,0.00041095,30]
[326722833,1715284251445,-500.0,0.00041095,30]
[326722834,1715284251464,-500.0,0.00041095,30]
[326722835,1715284251483,-500.0,0.00041095,30]
[326722836,1715284251498,-4124.78,0.00041095,30]
[326722837,1715284251514,-500.0,0.00041095,30]
[326722838,1715284251534,-500.0,0.00041095,30]
[326722839,1715284251554,-570.71,0.00041095,30]
[326722840,1715284251566,-500.0,0.00041095,30]
[326722841,1715284251582,-500.0,0.00041095,30]
[326722842,1715284251599,-500.0,0.00041095,30]
[326722843,1715284251616,-500.0,0.00041095,30]
[326722844,1715284251630,-500.0,0.00041095,30]
[326722845,1715284251643,-500.0,0.00041095,30]
[326722846,1715284251658,-416.47647358,0.00041095,30]
[326722847,1715284251672,-4196.56,0.00041095,30]
[326722848,1715284251688,-500.0,0.00041095,30]
[326722849,1715284251703,-500.0,0.00041095,30]
[326722850,1715284251717,-500.0,0.00041095,30]
[326722851,1715284251731,-500.0,0.00041095,30]
[326722852,1715284251746,-1079.34,0.00041095,30]
[326722853,1715284251760,-544.18,0.00041095,30]
[326722854,1715284251774,-500.0,0.00041095,30]
[326722855,1715284251788,-500.0,0.00041095,30]
[326722856,1715284251802,-954.73,0.00041095,30]
[326722857,1715284251816,-1556.01,0.00041095,30]
[326722858,1715284251831,-500.0,0.00041095,30]
[326722859,1715284251849,-552.58,0.00041095,30]
[326722860,1715284251863,-500.0,0.00041095,30]
[326722861,1715284251879,-500.0,0.00041095,30]
[326722862,1715284251893,-500.0,0.00041095,30]
[326722863,1715284251907,-500.0,0.00041095,30]
[326722864,1715284251927,-528.8826084,0.00041095,30]
[326722865,1715284251941,-2930.31,0.00041095,30]
[326722866,1715284251957,-1303.06,0.00041095,30]
[326722867,1715284251972,-3583.5,0.00041095,30]
[326722868,1715284251988,-500.0,0.00041095,30]
[326722869,1715284252005,-500.0,0.00041095,30]
[326722870,1715284252021,-2580.39,0.00041095,30]
[326722871,1715284252036,-561.46,0.00041095,30]
[326722872,1715284252051,-500.0,0.00041095,30]
[326722873,1715284252066,-1597.71,0.00041095,30]
[326722874,1715284252081,-500.0,0.00041095,30]
[326722875,1715284252095,-500.0,0.00041095,30]
[326722876,1715284252110,-500.0,0.00041095,30]
[326722877,1715284252129,-500.0,0.00041095,30]
[326722878,1715284252145,-1807.11,0.00041095,30]
[326722879,1715284252159,-500.0,0.00041095,30]
[326722880,1715284252174,-500.0,0.00041095,30]
[326722881,1715284252189,-500.0,0.00041095,30]
[326722882,1715284252204,-8734.82,0.00041095,30]
[326722883,1715284252219,-500.0,0.00041095,30]
[326722884,1715284252235,-500.0,0.00041095,30]
[326722885,1715284252249,-841.4,0.00041095,30]
[326722886,1715284252264,-935.36,0.00041095,30]
[326722887,1715284252279,-500.0,0.00041095,30]
[326722888,1715284252293,-500.0,0.00041095,30]
[326722889,1715284252307,-1933.26,0.00041095,30]
[326722890,1715284252322,-500.0,0.00041095,31]
[326722891,1715284252336,-500.0,0.00041095,32]
[326722892,1715284252351,-500.0,0.00041095,30]
[326722893,1715284252366,-500.0,0.00041095,33]
[326722894,1715284252380,-500.0,0.00041095,34]
[326722895,1715284252396,-500.0,0.00041095,35]
[326722896,1715284252411,-500.0,0.00041095,30]
[326722897,1715284252426,-495.6061637,0.00041095,36]
[326722898,1715284252441,-500.0,0.00041095,30]
[326722899,1715284252457,-5400.18,0.00041095,30]
[326722900,1715284252472,-603.34,0.00041095,30]
[326722901,1715284252487,-500.0,0.00041095,30]
[326722902,1715284252501,-500.0,0.00041095,30]
[326722903,1715284252517,-500.0,0.00041095,30]
[326722904,1715284252533,-500.0,0.00041095,30]
[326722905,1715284252547,-2415.02,0.00041095,30]
[326722906,1715284252561,-2476.49,0.00041095,30]
[326722907,1715284252576,-1014.53,0.00041095,30]
[326722908,1715284252592,-500.0,0.00041095,30]
[326722909,1715284252608,-992.44,0.00041095,30]
[326722910,1715284252624,-500.0,0.00041095,30]
[326722911,1715284252639,-500.0,0.00041095,30]
[326722912,1715284252654,-500.0,0.00041095,30]
[326722913,1715284252669,-500.0,0.00041095,30]
[326722914,1715284252684,-500.0,0.00041095,30]
[326722915,1715284252699,-500.0,0.00041095,30]
[326722916,1715284252714,-45367.61,0.00041095,30]
[326722917,1715284252729,-586.95,0.00041095,30]
[326722918,1715284252744,-500.0,0.00041095,30]
[326722919,1715284252758,-500.0,0.00041095,30]
[326722920,1715284252774,-619.3,0.00041095,30]
[326722921,1715284252788,-500.0,0.00041095,30]
[326722922,1715284252803,-501.8109137,0.00041095,30]
[326722923,1715284252817,-753.42,0.00041095,30]
[326722924,1715284252832,-17086.31,0.00041095,30]
[326722925,1715284252847,-3259.03,0.00041095,30]
[326722926,1715284252862,-1012.29,0.00041095,30]
[326722927,1715284252876,-500.0,0.00041095,30]
[326722928,1715284252890,-500.0,0.00041095,30]
[326722929,1715284252905,-500.0,0.00041095,30]
[326722930,1715284252922,-6525.05,0.00041095,30]
[326722931,1715284252937,-500.0,0.00041095,30]
[326722932,1715284252954,-3062.4,0.00041095,30]
[326722933,1715284252966,-500.0,0.00041095,30]
[326722934,1715284253217,-500.0,0.00041095,30]
[326722935,1715284253226,-500.0,0.00041095,30]
[326722936,1715284253236,-929.96,0.00041095,30]
[326722937,1715284253246,-638.17,0.00041095,30]
[326722938,1715284253256,-500.0,0.00041095,30]
[326722939,1715284253266,-500.0,0.00041095,30]
[326722940,1715284253276,-3092.76,0.00041095,30]
[326722941,1715284253285,-4180.26,0.00041095,30]